fUSD/lending_fUSD_20240611
["ID","MTS","AMOUNT","RATE_DAILY","PERIOD"]
[329117298,1718119852176,-500.0,0.00024657,2]
[329117299,1718119852187,-151.0,0.00024657,7]
[329117300,1718119852200,-500.0,0.00024657,2]
[329117301,1718119852211,-500.0,0.00024657,2]
[329117302,1718119852221,-500.0,0.00024657,2]
[329117303,1718119852232,-151.0,0.00024657,7]
[329117304,1718119852242,-500.0,0.00024657,2]
[329117305,1718119852252,-500.0,0.00024657,2]
[329117306,1718119852263,-500.0,0.00024657,2]
[329117307,1718119852274,-500.0,0.00024657,2]
[329117308,1718119852285,-500.0,0.00024657,2]
[329117309,1718119852299,-2149.54,0.00024657,2]
[329117310,1718119852314,-500.0,0.00024657,2]
[329117311,1718119852325,-500.0,0.00024657,2]
[329117312,1718119852336,-500.0,0.00024657,2]
[329117313,1718119852346,-500.0,0.00024657,2]
[329117314,1718119852356,-519.14352864,0.00024657,2]
[329117315,1718119852366,-504.91897091,0.00024657,2]
[329117316,1718119852377,-727.28,0.00024657,2]
[329117317,1718119852388,-538.18180326,0.00024657,2]
[329117318,1718119852400,-500.0,0.00024657,2]
[329117319,1718119852411,-697.76,0.00024657,2]
[329117320,1718119852422,-500.0,0.00024657,2]
[329117321,1718119852434,-500.0,0.00024657,2]
[329117322,1718119852444,-500.0,0.00024657,2]
[329117323,1718119852458,-1257.43,0.00024657,2]
[329117324,1718119852469,-500.0,0.00024657,2]
[329117325,1718119852480,-505.47326474,0.00024657,2]
[329117326,1718119852491,-500.0,0.00024657,2]
[329117327,1718119852501,-500.0,0.00024657,2]
[329117328,1718119852513,-1806.92,0.00024657,2]
[329117329,1718119852524,-500.0,0.00024657,2]
[329117330,1718119852536,-500.0,0.00024657,2]
[329117331,1718119852547,-500.0,0.00024657,2]
[329117332,1718119852845,-151.0,0.00024657,7]
[329117333,1718119852858,-151.0,0.00024657,7]
[329117334,1718119852869,-1043.98,0.00024657,2]
[329117335,1718119852880,-1161.17,0.00024657,2]
[329117336,1718119852890,-500.0,0.00024657,2]
[329117337,1718119852900,-500.0,0.00024657,2]
[329117338,1718119852910,-931.58,0.00024657,2]
[329117339,1718119852921,-2675.03,0.00024657,2]
[329117340,1718119852931,-500.0,0.00024657,2]
[329117341,1718119852941,-151.0,0.00024657,7]
[329117342,1718119852955,-485.36779334,0.00024657,2]
[329117343,1718119852965,-151.0,0.00024657,7]
[329117344,1718119852976,-508.16381703,0.00024657,2]
[329117345,1718119852987,-500.0,0.00024657,2]
[329117346,1718119852997,-500.0,0.00024657,2]
[329117347,1718119853008,-1003.55,0.00024657,2]
[329117348,1718119853019,-508.84126634,0.00024657,2]
[329117349,1718119853036,-151.0,0.00024657,7]
[329117350,1718119853046,-158.913245,0.00024657,7]
[329117351,1718119853057,-500.0,0.00024657,2]
[329117352,1718119853069,-1620.15,0.00024657,2]
[329117353,1718119853080,-500.0,0.00024657,2]
[329117354,1718119853090,-2316.97,0.00024657,2]
[329117355,1718119853106,-500.0,0.00024657,2]
[329117356,1718119853128,-500.0,0.00024657,2]
[329117357,1718119853141,-158.913245,0.00024657,7]
[329117358,1718119853151,-500.0,0.00024657,2]
[329117359,1718119853163,-2179.98,0.00024657,2]
[329117360,1718119853177,-530.66602174,0.00024657,2]
[329117361,1718119853187,-1054.53,0.00024657,2]
[329117362,1718119853200,-500.0,0.00024657,2]
[329117363,1718119853232,-500.0,0.00024657,2]
[329117364,1718119853243,-504.74125149,0.00024657,2]
[329117365,1718119853259,-500.0,0.00024657,2]
[329117366,1718119853270,-500.0,0.00024657,2]
[329117367,1718119853282,-1338.42,0.00024657,2]
[329117368,1718119853304,-500.0,0.00024657,2]
[329117369,1718119853322,-500.0,0.00024657,2]
[329117370,1718119853363,-500.0,0.00024657,2]
[329117371,1718119853375,-500.0,0.00024657,2]
[329117372,1718119853386,-500.0,0.00024657,2]
[329117373,1718119853399,-689.88,0.00024657,2]
[329117374,1718119853415,-521.25878835,0.00024657,2]
[329117375,1718119853428,-500.0,0.00024657,2]
[329117376,1718119853440,-500.0,0.00024657,2]
[329117377,1718119853460,-500.0,0.00024657,2]
[329117378,1718119853474,-1860.48,0.00024657,2]
[329117379,1718119853488,-535.87,0.00024657,2]
[329117380,1718119853508,-500.0,0.00024657,2]
[329117381,1718119853519,-533.23312602,0.00024657,2]
[329117382,1718119853530,-1174.16,0.00024657,2]
[329117383,1718119853541,-501.58885433,0.00024657,2]
[329117384,1718119853551,-500.0,0.00024657,2]
[329117385,1718119853562,-438.25696855,0.00024657,2]
[329117386,1718119853573,-547.10224801,0.00024657,2]
[329117387,1718119853587,-159.32423,0.00024657,7]
[329117388,1718119853598,-530.57203676,0.00024657,2]
[329117389,1718119853609,-500.0,0.00024657,2]
[329117390,1718119853619,-500.0,0.00024657,2]
[329117391,1718119853630,-500.0,0.00024657,2]
[329117392,1718119853640,-500.0,0.00024657,2]
[329117393,1718119853650,-500.0,0.00024657,2]
[329117394,1718119853660,-159.32423,0.00024657,7]
[329117395,1718119853669,-500.0,0.00024657,2]
[329117396,1718119853680,-571.33,0.00024657,2]
[329117397,1718119853690,-151.0,0.00024657,7]
[329117398,1718119853707,-500.0,0.00024657,2]
[329117399,1718119853718,-1336.41,0.00024657,2]
[329117400,1718119853730,-500.0,0.00024657,2]
[329117401,1718119853741,-500.0,0.00024657,2]
[329117402,1718119853750,-500.0,0.00024657,2]
[329117403,1718119853766,-500.0,0.00024657,2]
[329117404,1718119853780,-818.16,0.00024657,2]
[329117405,1718119853791,-217.31625713,0.00024657,2]
[329117406,1718119853802,-151.0,0.00024657,7]
[329117407,1718119853813,-500.0,0.00024657,2]
[329117408,1718119853824,-500.0,0.00024657,2]
[329117409,1718119853834,-500.0,0.00024657,2]
[329117410,1718119853845,-151.0,0.00024657,7]
[329117411,1718119853858,-500.0,0.00024657,2]
[329117412,1718119853868,-500.0,0.00024657,2]
[329117413,1718119853878,-500.0,0.00024657,2]
[329117414,1718119853889,-500.0,0.00024657,2]
[329117415,1718119853899,-500.0,0.00024657,2]
[329117416,1718119853910,-527.6,0.00024657,2]
[329117417,1718119853920,-500.0,0.00024657,2]
[329117418,1718119853931,-500.0,0.00024657,2]
[329117419,1718119853943,-577.46,0.00024657,2]
[329117420,1718119853956,-500.0,0.00024657,2]
[329117421,1718119853967,-500.0,0.00024657,2]
[329117422,1718119853977,-500.0,0.00024657,2]
[329117423,1718119853987,-7767.5,0.00024657,2]
[329117424,1718119853997,-500.0,0.00024657,2]
[329117425,1718119854007,-588.03,0.00024657,2]
[329117426,1718119854019,-399.21774873,0.00024657,2]
[329117427,1718119854036,-401.43,0.00024657,2]
[329117428,1718119854047,-14456.37,0.00024657,2]
[329117429,1718119854058,-500.0,0.00024657,2]
[329117430,1718119854070,-500.0,0.00024657,2]
[329117431,1718119854081,-500.0,0.00024657,2]
[329117432,1718119854094,-500.0,0.00024657,2]
[329117433,1718119854104,-235.80639,0.00024657,7]
[329117434,1718119854115,-500.0,0.00024657,2]
[329117435,1718119854125,-500.0,0.00024657,2]
[329117436,1718119854138,-2997.8,0.00024657,2]
[329117437,1718119854148,-235.80639,0.00024657,7]
[329117438,1718119854158,-500.0,0.00024657,2]
[329117439,1718119854169,-500.0,0.00024657,2]
[329117440,1718119854179,-500.0,0.00024657,2]
[329117441,1718119854189,-728.19,0.00024657,2]
[329117442,1718119854203,-504.43,0.00024657,2]
[329117443,1718119854214,-500.0,0.00024657,2]
[329117444,1718119854223,-631.57,0.00024657,2]
[329117445,1718119854234,-500.0,0.00024657,2]
[329117446,1718119854244,-500.0,0.00024657,2]
[329117447,1718119854255,-8037.15,0.00024657,2]
[329117448,1718119854265,-500.0,0.00024657,2]
[329117449,1718119854276,-3422.12,0.00024657,2]
[329117450,1718119854286,-500.0,0.00024657,2]
[329117451,1718119854302,-1252.5,0.00024657,2]
[329117452,1718119854317,-1237.0,0.00024657,2]
[329117453,1718119854327,-500.0,0.00024657,2]
[329117454,1718119854341,-525.54279578,0.00024657,2]
[329117455,1718119854351,-580.48,0.00024657,2]
[329117456,1718119854361,-500.0,0.00024657,2]
[329117457,1718119854371,-500.0,0.00024657,2]
[329117458,1718119854384,-500.0,0.00024657,2]
[329117459,1718119854394,-500.0,0.00024657,2]
[329117460,1718119854406,-2582.78,0.00024657,2]
[329117461,1718119854416,-2673.13,0.00024657,2]
[329117462,1718119854426,-1852.54,0.00024657,2]
[329117463,1718119854436,-955.01,0.00024657,2]
[329117464,1718119854449,-500.0,0.00024657,2]
[329117465,1718119854459,-983.6,0.00024657,2]
[329117466,1718119854469,-500.0,0.00024657,2]
[329117467,1718119854479,-500.0,0.00024657,2]
[329117468,1718119854489,-373.129014,0.00024657,7]
[329117469,1718119854499,-500.0,0.00024657,2]
[329117470,1718119854510,-500.0,0.00024657,2]
[329117471,1718119854520,-500.0,0.00024657,2]
[329117472,1718119854531,-500.0,0.00024657,2]
[329117473,1718119854541,-1638.35,0.00024657,2]
[329117474,1718119854551,-204.69456681,0.00024657,2]
[329117475,1718119854562,-373.129014,0.00024657,7]
[329117476,1718119854573,-1133.74,0.00024657,2]
[329117477,1718119854583,-500.0,0.00024657,2]
[329117478,1718119854593,-506.06343745,0.00024657,2]
[329117479,1718119854604,-500.0,0.00024657,2]
[329117480,1718119854614,-550.58,0.00024657,2]
[329117481,1718119854624,-500.0,0.00024657,2]
[329117482,1718119854635,-952.95,0.00024657,2]
[329117483,1718119854645,-695.49,0.00024657,2]
[329117484,1718119854655,-401.63656734,0.00024657,2]
[329117485,1718119854667,-500.0,0.00024657,2]
[329117486,1718119854677,-1913.1,0.00024657,2]
[329117487,1718119854687,-500.0,0.00024657,2]
[329117488,1718119854698,-500.0,0.00024657,2]
[329117489,1718119854708,-500.0,0.00024657,2]
[329117490,1718119854719,-615.46428138,0.00024657,2]
[329117491,1718119854728,-514.93354295,0.00024657,2]
[329117492,1718119854739,-500.0,0.00024657,2]
[329117493,1718119854750,-500.0,0.00024657,2]
[329117494,1718119854760,-500.0,0.00024657,2]
[329117495,1718119854771,-506.03227111,0.00024657,2]
[329117496,1718119854786,-10563.58,0.00024657,2]
[329117497,1718119854797,-20436.75,0.00024657,2]
[329117498,1718119854807,-605.45,0.00024657,2]
[329117499,1718119854817,-500.0,0.00024657,2]
[329117500,1718119854826,-534.49608146,0.00024657,2]
[329117501,1718119854836,-615.24,0.00024657,2]
[329117502,1718119854847,-295.42481821,0.00024657,2]
[329117503,1718119854859,-500.0,0.00024657,2]
[329117504,1718119854870,-500.0,0.00024657,2]
[329117505,1718119854880,-500.0,0.00024657,2]
[329117506,1718119854890,-500.0,0.00024657,2]
[329117507,1718119854899,-500.0,0.00024657,2]
[329117508,1718119854910,-1593.03,0.00024657,2]
[329117509,1718119854920,-151.0,0.00024657,7]
[329117510,1718119854929,-1085.58,0.00024657,2]
[329117511,1718119854940,-3413.8,0.00024657,2]
[329117512,1718119854951,-1309.21,0.00024657,2]
[329117513,1718119854961,-500.0,0.00024657,2]
[329117514,1718119854971,-8032.71,0.00024657,2]
[329117515,1718119854981,-500.0,0.00024657,2]
[329117516,1718119854991,-500.0,0.00024657,2]
[329117517,1718119855002,-508.87563942,0.00024657,2]
[329117518,1718119855012,-3335.04,0.00024657,2]
[329117519,1718119855022,-1421.55,0.00024657,2]
[329117520,1718119855032,-529.9722669,0.00024657,2]
[329117521,1718119855044,-155.83930457,0.00024657,2]
[329117522,1718119855054,-565.25,0.00024657,2]
[329117523,1718119855064,-1491.52,0.00024657,2]
[329117524,1718119855074,-525.07901113,0.00024657,2]
[329117525,1718119855084,-500.0,0.00024657,2]
[329117526,1718119855094,-500.0,0.00024657,2]
[329117527,1718119855104,-1882.63,0.00024657,2]
[329117528,1718119855114,-14454.77,0.00024657,2]
[329117529,1718119855124,-2634.89,0.00024657,2]
[329117530,1718119855133,-1556.33,0.00024657,2]
[329117531,1718119855144,-500.0,0.00024657,2]
[329117532,1718119855154,-2146.62,0.00024657,2]
[329117533,1718119855164,-1129.72,0.00024657,2]
[329117534,1718119855174,-252.09222095,0.00024657,2]
[329117535,1718119855772,-719.84129831,0.00024657,2]
[329117536,1718119855817,-2602.61002186,0.00024657,2]
[329117537,1718119856042,-1000.0,0.00024657,2]
[329117538,1718119856055,-2052.77498263,0.00024657,2]
[329117539,1718119856455,-4409.22147625,0.00024657,2]
[329117540,1718119856466,-500.0,0.00024657,2]
[329117541,1718119856478,-500.0,0.00024657,2]
[329117542,1718119856489,-36089.11,0.00024657,2]
[329117543,1718119856499,-1925.9,0.00024657,2]
[329117544,1718119856510,-500.0,0.00024657,2]
[329117545,1718119856527,-983.87,0.00024657,2]
[329117546,1718119856537,-623.92,0.00024657,2]
[329117547,1718119856554,-642.19482965,0.00024657,2]
[329117548,1718119856571,-500.0,0.00024657,2]
[329117549,1718119856584,-4342.58,0.00024657,2]
[329117550,1718119856595,-500.0,0.00024657,2]
[329117551,1718119856608,-2375.86,0.00024657,2]
[329117552,1718119856619,-5155.36,0.00024657,2]
[329117553,1718119856630,-500.0,0.00024657,2]
[329117554,1718119856642,-500.0,0.00024657,2]
[329117555,1718119856654,-500.0,0.00024657,2]
[329117556,1718119856665,-1912.66,0.00024657,2]
[329117557,1718119856678,-1196.84,0.00024657,2]
[329117558,1718119856690,-500.0,0.00024657,2]
[329117559,1718119856703,-500.0,0.00024657,2]
[329117560,1718119856717,-3156.94,0.00024657,2]
[329117561,1718119856727,-2004.33,0.00024657,2]
[329117562,1718119856740,-530.07558012,0.00024657,2]
[329117563,1718119856750,-569.62,0.00024657,2]
[329117564,1718119856764,-732.47,0.00024657,2]
[329117565,1718119856776,-1165.93,0.00024657,2]
[329117566,1718119856788,-3092.46,0.00024657,2]
[329117567,1718119856799,-859.28,0.00024657,2]
[329117568,1718119856812,-3641.82,0.00024657,2]
[329117569,1718119856826,-500.0,0.00024657,2]
[329117570,1718119856837,-1469.58,0.00024657,2]
[329117571,1718119856847,-1995.66,0.00024657,2]
[329117572,1718119856861,-6169.85,0.00024657,2]
[329117573,1718119856872,-2709.89,0.00024657,2]
[329117574,1718119856882,-2085.44,0.00024657,2]
[329117575,1718119856893,-500.0,0.00024657,2]
[329117576,1718119856904,-2297.4,0.00024657,2]
[329117577,1718119856914,-500.0,0.00024657,2]
[329117578,1718119856925,-500.0,0.00024657,2]
[329117579,1718119856936,-500.0,0.00024657,2]
[329117580,1718119856947,-505.59451378,0.00024657,2]
[329117581,1718119856964,-500.0,0.00024657,2]
[329117582,1718119856974,-500.0,0.00024657,2]
[329117583,1718119856991,-500.0,0.00024657,2]
[329117584,1718119857002,-500.0,0.00024657,2]
[329117585,1718119857014,-1874.25,0.00024657,2]
[329117586,1718119857025,-500.0,0.00024657,2]
[329117587,1718119857035,-1662.51,0.00024657,2]
[329117588,1718119857046,-196.03838572,0.00024657,2]
[329117589,1718119857057,-1884.07,0.00024657,2]
[329117590,1718119857068,-532.88298888,0.00024657,2]
[329117591,1718119857078,-500.0,0.00024657,2]
[329117592,1718119857090,-526.39289507,0.00024657,2]
[329117593,1718119857101,-1957.11,0.00024657,2]
[329117594,1718119857112,-500.0,0.00024657,2]
[329117595,1718119857123,-500.0,0.00024657,2]
[329117596,1718119857135,-500.0,0.00024657,2]
[329117597,1718119857147,-529.08690958,0.00024657,2]
[329117598,1718119857160,-1748.4,0.00024657,2]
[329117599,1718119857171,-2606.64,0.00024657,2]
[329117600,1718119857183,-500.0,0.00024657,2]
[329117601,1718119857193,-500.0,0.00024657,2]
[329117602,1718119857208,-1930.44,0.00024657,2]
[329117603,1718119857220,-2476.73,0.00024657,2]
[329117604,1718119857231,-546.7380562,0.00024657,2]
[329117605,1718119857242,-2947.7,0.00024657,2]
[329117606,1718119857253,-1774.24,0.00024657,2]
[329117607,1718119857264,-523.45,0.00024657,2]
[329117608,1718119857275,-500.0,0.00024657,2]
[329117609,1718119857287,-28.33052989,0.00024657,2]
[329117610,1718119857311,-10453.0,0.00024657,2]
[329117611,1718119922652,522.69878769,0.00017259,2]
[329117613,1718119960935,155.0,0.00017259,2]
[329117614,1718119976938,155.0,0.00017259,2]
[329117616,1718120001533,213.2442127,0.00017259,2]
[329117617,1718120002901,2169.0,0.000176,2]
[329117618,1718120024678,5785.05699961,0.00014,2]
[329117619,1718120024721,5000.0,0.00014,2]
[329117625,1718120071511,1232.47344022,6.94e-05,2]
[329117627,1718120219015,500.0,0.00028,120]
[329117647,1718120829260,-176.54095284,9.997e-05,2]
[329117648,1718120829289,-300.0,9.997e-05,2]
[329117649,1718120829325,-522.69878769,9.998e-05,2]
[329117650,1718120829355,-522.69878769,9.998e-05,2]
[329117651,1718120829385,-522.69878769,9.998e-05,2]
[329117652,1718120829415,-522.69878769,9.998e-05,2]
[329117653,1718120829452,-522.69878769,9.998e-05,2]
[329117654,1718120829481,-951.75620783,0.0001,2]
[329117655,1718120829506,-47.81542987,0.0001,2]
[329117656,1718120838117,-161.92271864,0.0001,2]
[329117657,1718120838144,-2416.04896024,0.000101,2]
[329117658,1718120838171,-324.0,0.00010997,2]
[329117659,1718120838198,-14628.89739544,0.000118,2]
[329117660,1718120838249,-3026.55345764,0.000118,2]
[329117668,1718120947174,-536.28840969,9.999e-05,2]
[329117669,1718120962168,-10025.63873703,0.000118,2]
[329117670,1718120963124,-360.20035804,0.000118,2]
[329117671,1718120974204,-2263.45868054,0.000118,2]
[329117711,1718121034093,-9937.5,0.000118,2]
[329117727,1718121035109,-894.86737131,0.000118,2]
[329117728,1718121035121,-6969.59173801,0.00012125,2]
[329117729,1718121035131,-298.42,0.00012225,2]
[329117730,1718121035142,-150.0,0.00012959,2]
[329117731,1718121035153,-397.89000003,0.0001298,2]
[329117732,1718121035163,-320.0,0.00013541,2]
[329117733,1718121035176,-466.06,0.000136,2]
[329117734,1718121035186,-300.0,0.000136,4]
[329117735,1718121035202,-600.0,0.000137,5]
[329117736,1718121035213,-51.50879069,0.000138,5]
[329117737,1718121035227,-848.49120931,0.000138,5]
[329117738,1718121035239,-1428.9726,0.00013899,2]
[329117739,1718121035250,-194.2624,0.000139,2]
[329117740,1718121035263,-1200.0,0.000139,5]
[329117741,1718121035279,-362.05,0.00013971,2]
[329117742,1718121035291,-629.88,0.00013989,3]
[329117743,1718121035303,-198.1970018,0.00013989,2]
[329117744,1718121035314,-225.40830782,0.00013989,2]
[329117745,1718121035324,-153.0,0.0001399,2]
[329117746,1718121035336,-201.37416449,0.00013997,2]
[329117747,1718121035347,-1253.00742069,0.00013997,2]
[329117748,1718121035358,-176.31329187,0.00013997,2]
[329117749,1718121035369,-522.69878769,0.00013997,2]
[329117750,1718121035379,-1300.06879292,0.00013998,2]
[329117751,1718121035390,-528.31814333,0.00013998,2]
[329117752,1718121035401,-448.44440051,0.00013999,2]
[329117753,1718121035412,-243067.32944569,0.00013999,2]
[329117754,1718121035423,-156575.30148912,0.00014,2]
[329117755,1718121035436,-1209.19232311,0.00014,2]
[329117756,1718121035449,-1455.35613689,0.00014,2]
[329117757,1718121035462,-317.85435054,0.00014,2]
[329117758,1718121035475,-444.50127724,0.00014,2]
[329117759,1718121035487,-951.02549616,0.00014,2]
[329117760,1718121035500,-4607.94178656,0.00014,2]
[329117761,1718121035512,-298.205752,0.00014,2]
[329117762,1718121035528,-1328.8275,0.00014,2]
[329117763,1718121035540,-665.77511,0.00014,2]
[329117764,1718121035553,-367182.89483597,0.00014,2]
[329117784,1718121042874,-6655.0,0.00014,2]
[329117786,1718121042888,-3143.24310221,0.00014,2]
[329117787,1718121042905,-6160.39373051,0.00014,2]
[329117836,1718121044825,-643.11096101,0.000118,2]
[329117837,1718121044838,-665.35,0.000118,2]
[329117838,1718121044851,-110.93802934,0.000118,2]
[329117839,1718121044861,-338.65988611,0.00013989,2]
[329117840,1718121044872,-563.2819921,0.00014,2]
[329117841,1718121044885,-980.02229166,0.00014,2]
[329117842,1718121044897,-811.13921495,0.00014,2]
[329117843,1718121044909,-1092.99227866,0.00014,2]
[329117844,1718121044922,-50349.31287421,0.00014,2]
[329117845,1718121044936,-342.24513596,0.00014,2]
[329117846,1718121044950,-842.40882184,0.00014,2]
[329117847,1718121044962,-271.83224055,0.00014,2]
[329117848,1718121044975,-845.28834955,0.00014,2]
[329117849,1718121044988,-366.30795969,0.00014,2]
[329117850,1718121045001,-138000.0,0.00014,2]
[329117851,1718121045013,-1500.0,0.00014,2]
[329117852,1718121045029,-6638.60879373,0.00014,2]
[329117853,1718121045042,-826.31748556,0.00014,2]
[329117854,1718121045054,-662.18,0.00014,2]
[329117855,1718121045066,-66250.0,0.00014,2]
[329117856,1718121045078,-331.92,0.00014,2]
[329117857,1718121045090,-391.99110767,0.00014,2]
[329117858,1718121045104,-365.47862122,0.00014,2]
[329117859,1718121045116,-7507.5,0.00014,2]
[329117860,1718121045128,-1461998.56977981,0.00014,2]
[329117861,1718121045140,-332108.37069239,0.00014,2]
[329117862,1718121045153,-331547.48088447,0.00014,2]
[329117863,1718121045163,-2137.06789423,0.00014089,2]
[329117864,1718121045174,-334.22129598,0.00014189,2]
[329117865,1718121045185,-250.0,0.00014289,2]
[329117866,1718121045201,-298.42,0.00014489,2]
[329117867,1718121045212,-250.0,0.00014635,2]
[329117868,1718121045223,-1500.0,0.000149,5]
[329117869,1718121045234,-153.0,0.0001499,2]
[329117870,1718121045244,-273883.23364836,0.00015,2]
[329117871,1718121045257,-474154.67664084,0.00015,2]
[329117948,1718121046040,-1992.91092,0.00015,2]
[329117952,1718121046053,-714.00000001,0.00015,2]
[329117955,1718121046067,-27871.18209463,0.00015,2]
[329117957,1718121046080,-34615.99999995,0.00015,2]
[329117960,1718121046097,-4412.1,0.00015,2]
[329117962,1718121046110,-377562.67488334,0.00015,2]
[329117964,1718121046120,-680.0,0.00015076,2]
[329117966,1718121046131,-320.0,0.00015234,2]
[329117968,1718121046141,-200.62290041,0.00016438,7]
[329117970,1718121046152,-362.05,0.0001671,2]
[329117972,1718121046163,-298.42,0.00016752,2]
[329117974,1718121046176,-320.0,0.00016926,2]
[329117976,1718121046189,-680.0,0.0001696,2]
[329117978,1718121046199,-320.0,0.00018619,2]
[329117980,1718121046210,-680.0,0.00018845,2]
[329117982,1718121046222,-2370.72476098,0.00018878,2]
[329117984,1718121046233,-300.0,0.00018978,2]
[329117986,1718121046243,-298.42,0.00019016,2]
[329117988,1718121046254,-2137.06789421,0.00019049,2]
[329117990,1718121046266,-172.1673832,0.00019178,2]
[329117992,1718121046282,-362.05,0.0001945,2]
[329117994,1718121046292,-2370.72476094,0.00019581,2]
[329117996,1718121046306,-226.7178388,0.000201,2]
[329117998,1718121046317,-2370.72476094,0.00020284,2]
[329118000,1718121046327,-320.0,0.00020311,2]
[329118002,1718121046338,-680.0,0.00020729,2]
[329118004,1718121046349,-2370.72476094,0.00020987,2]
[329118006,1718121046360,-298.42,0.0002128,2]
[329118008,1718121046371,-1000.0,0.00021314,2]
[329118010,1718121046382,-3665.005,0.00021506,2]
[329118012,1718121046393,-330.15,0.00021671,2]
[329118014,1718121046404,-2370.72476094,0.0002169,2]
[329118016,1718121046415,-3603.33,0.00021705,2]
[329118018,1718121046425,-300.0,0.000219,7]
[329118020,1718121046436,-500.0,0.00021917,2]
[329118022,1718121046447,-725.54,0.00021917,2]
[329118024,1718121046457,-500.0,0.00021917,2]
[329118026,1718121046468,-1026.73,0.00021917,2]
[329118028,1718121046480,-1296.0,0.00021917,2]
[329118030,1718121046491,-1405.76,0.00021917,2]
[329118032,1718121046501,-1034.47,0.00021917,2]
[329118034,1718121046511,-500.0,0.00021917,2]
[329118036,1718121046525,-1528.38,0.00021917,2]
[329118038,1718121046539,-500.0,0.00021917,2]
[329118040,1718121046553,-500.0,0.00021917,2]
[329118042,1718121046563,-2234.33,0.00021917,2]
[329118044,1718121046580,-674.43,0.00021917,2]
[329118046,1718121046592,-680.06,0.00021917,2]
[329118048,1718121046603,-500.0,0.00021917,2]
[329118050,1718121046614,-1394.55,0.00021917,2]
[329118052,1718121046625,-651.06,0.00021917,2]
[329118054,1718121046636,-500.0,0.00021917,2]
[329118056,1718121046649,-500.0,0.00021917,2]
[329118058,1718121046660,-500.0,0.00021917,2]
[329118060,1718121046670,-1499.43,0.00021917,2]
[329118062,1718121046680,-701.68,0.00021917,2]
[329118064,1718121046691,-1269.35,0.00021917,2]
[329118066,1718121046701,-500.0,0.00021917,2]
[329118068,1718121046712,-1136.71,0.00021917,2]
[329118070,1718121046722,-1197.33,0.00021917,2]
[329118072,1718121046732,-570.94,0.00021917,2]
[329118074,1718121046743,-1478.08,0.00021917,2]
[329118077,1718121046769,-1143.55,0.00021917,2]
[329118079,1718121046783,-1036.87,0.00021917,2]
[329118081,1718121046794,-526.16,0.00021917,2]
[329118083,1718121046804,-892.02,0.00021917,2]
[329118085,1718121046814,-500.0,0.00021917,2]
[329118087,1718121046824,-500.0,0.00021917,2]
[329118089,1718121046835,-1308.87,0.00021917,2]
[329118091,1718121046845,-500.0,0.00021917,2]
[329118093,1718121046856,-1310.64,0.00021917,2]
[329118095,1718121046867,-1348.85,0.00021917,2]
[329118097,1718121046878,-500.0,0.00021917,2]
[329118099,1718121046888,-1504.67,0.00021917,2]
[329118101,1718121046899,-500.0,0.00021917,2]
[329118103,1718121046910,-500.0,0.00021917,2]
[329118105,1718121046921,-500.0,0.00021917,2]
[329118107,1718121046931,-500.0,0.00021917,2]
[329118109,1718121046941,-500.0,0.00021917,2]
[329118111,1718121046952,-2154.24,0.00021917,2]
[329118113,1718121046962,-1185.95,0.00021917,2]
[329118115,1718121046975,-1706.4,0.00021917,2]